Department Family,Entity,Date,Expense Type,Expense area,Supplier,Transaction Number,Amount in Sterling �s incl VAT ,Supplier VAT Registration number
NHS,Glos Hospitals NHS Foundation Trust,05/07/2022,Finished processed goods,Inventories,GE Healthcare Limited,000292-25,"-31,409.40", 
NHS,Glos Hospitals NHS Foundation Trust,05/07/2022,Finished processed goods,Inventories,CSL Behring UK Limited,000294-10,"44,196.00", 
NHS,Glos Hospitals NHS Foundation Trust,05/07/2022,Finished processed goods,Inventories,Octapharma Limited,000294-45,"38,940.00", 
NHS,Glos Hospitals NHS Foundation Trust,05/07/2022,Finished processed goods,Inventories,Bayer,000296-6,"45,622.80", 
NHS,Glos Hospitals NHS Foundation Trust,05/07/2022,Finished processed goods,Inventories,Bayer,000296-8,"45,622.80", 
NHS,Glos Hospitals NHS Foundation Trust,05/07/2022,Finished processed goods,Inventories,Roche Products Limited,000296-94,"26,712.00", 
NHS,Glos Hospitals NHS Foundation Trust,05/07/2022,Finished processed goods,Inventories,Bayer,000298-10,"49,272.62", 
NHS,Glos Hospitals NHS Foundation Trust,05/07/2022,Finished processed goods,Inventories,Alloga UK Limited,000298-35,"45,000.00", 
NHS,Glos Hospitals NHS Foundation Trust,05/07/2022,Finished processed goods,Inventories,Alliance Healthcare,000299-131,"68,169.60", 
NHS,Glos Hospitals NHS Foundation Trust,05/07/2022,Finished processed goods,Inventories,Alliance Healthcare,000301-121,"68,169.60", 
NHS,Glos Hospitals NHS Foundation Trust,05/07/2022,Finished processed goods,Inventories,Alliance Healthcare,000301-94,"68,169.60", 
NHS,Glos Hospitals NHS Foundation Trust,05/07/2022,Finished processed goods,Inventories,Novartis Pharmaceuticals UK Limited,000303-42,"32,054.40", 
NHS,Glos Hospitals NHS Foundation Trust,05/07/2022,Finished processed goods,Inventories,Aah Pharmaceuticals Limited,000303-58,"28,366.28", 
NHS,Glos Hospitals NHS Foundation Trust,05/07/2022,Finished processed goods,Inventories,Aah Pharmaceuticals Limited,000303-67,"27,058.08", 
NHS,Glos Hospitals NHS Foundation Trust,05/07/2022,Finished processed goods,Inventories,Alloga UK Limited,000304-111,"45,000.00", 
NHS,Glos Hospitals NHS Foundation Trust,05/07/2022,Finished processed goods,Inventories,Roche Products Limited,000304-23,"54,990.00", 
NHS,Glos Hospitals NHS Foundation Trust,05/07/2022,Finished processed goods,Inventories,Roche Products Limited,000304-24,"67,956.00", 
NHS,Glos Hospitals NHS Foundation Trust,05/07/2022,Finished processed goods,Inventories,Novartis Pharmaceuticals UK Limited,000306-16,"48,081.60", 
NHS,Glos Hospitals NHS Foundation Trust,05/07/2022,Finished processed goods,Inventories,Bayer,000306-27,"45,622.80", 
NHS,Glos Hospitals NHS Foundation Trust,05/07/2022,Finished processed goods,Inventories,Bayer,000306-28,"45,622.80", 
NHS,Glos Hospitals NHS Foundation Trust,05/07/2022,Finished processed goods,Inventories,Novartis Pharmaceuticals UK Limited,000307-15,"48,108.05", 
NHS,Glos Hospitals NHS Foundation Trust,05/07/2022,Finished processed goods,Inventories,Bayer,000309-161,"49,272.62", 
NHS,Glos Hospitals NHS Foundation Trust,05/07/2022,Finished processed goods,Inventories,Bayer,000309-163,"49,272.62", 
NHS,Glos Hospitals NHS Foundation Trust,05/07/2022,Finished processed goods,Inventories,Bristol Myers Squibb Pharmaceuticals Limited,000309-164,"112,919.40", 
NHS,Glos Hospitals NHS Foundation Trust,05/07/2022,Finished processed goods,Inventories,Roche Products Limited,000309-166,"64,223.88", 
NHS,Glos Hospitals NHS Foundation Trust,05/07/2022,Finished processed goods,Inventories,Alloga UK Limited,000309-225,"27,299.76", 
NHS,Glos Hospitals NHS Foundation Trust,05/07/2022,Finished processed goods,Inventories,Janssen Cilag Limited,000309-232,"83,462.40", 
NHS,Glos Hospitals NHS Foundation Trust,12/07/2022,Finished processed goods,Inventories,Bayer,000311-11,"45,622.80", 
NHS,Glos Hospitals NHS Foundation Trust,12/07/2022,Finished processed goods,Inventories,Novartis Pharmaceuticals UK Limited,000314-397,"32,067.62", 
NHS,Glos Hospitals NHS Foundation Trust,12/07/2022,Finished processed goods,Inventories,Bayer,000314-404,"49,272.62", 
NHS,Glos Hospitals NHS Foundation Trust,12/07/2022,Finished processed goods,Inventories,Roche Products Limited,000314-409,"54,990.00", 
NHS,Glos Hospitals NHS Foundation Trust,12/07/2022,Finished processed goods,Inventories,Alloga UK Limited,000314-494,"45,000.00", 
NHS,Glos Hospitals NHS Foundation Trust,12/07/2022,Finished processed goods,Inventories,Qualasept Ltd t/a Bath ASU,000314-504,"37,433.76", 
NHS,Glos Hospitals NHS Foundation Trust,12/07/2022,Finished processed goods,Inventories,Qualasept Ltd t/a Bath ASU,000314-505,"74,867.52", 
NHS,Glos Hospitals NHS Foundation Trust,12/07/2022,Finished processed goods,Inventories,Novartis Pharmaceuticals UK Limited,000315-369,"32,054.40", 
NHS,Glos Hospitals NHS Foundation Trust,12/07/2022,Finished processed goods,Inventories,Alloga UK Limited,000315-415,"27,120.00", 
NHS,Glos Hospitals NHS Foundation Trust,19/07/2022,Finished processed goods,Inventories,Alliance Healthcare,000316-196,"68,169.60", 
NHS,Glos Hospitals NHS Foundation Trust,19/07/2022,Finished processed goods,Inventories,Alloga UK Limited,000316-313,"45,000.00", 
NHS,Glos Hospitals NHS Foundation Trust,19/07/2022,Finished processed goods,Inventories,Jazz Pharmaceuticals,000316-71,"31,224.10", 
NHS,Glos Hospitals NHS Foundation Trust,19/07/2022,Finished processed goods,Inventories,Roche Products Limited,000316-77,"50,687.58", 
NHS,Glos Hospitals NHS Foundation Trust,19/07/2022,Finished processed goods,Inventories,Bayer,000317-21,"45,622.80", 
NHS,Glos Hospitals NHS Foundation Trust,19/07/2022,Finished processed goods,Inventories,Bayer,000317-24,"45,622.80", 
NHS,Glos Hospitals NHS Foundation Trust,19/07/2022,Finished processed goods,Inventories,Celgene Limited,000317-314,"36,272.88", 
NHS,Glos Hospitals NHS Foundation Trust,19/07/2022,Finished processed goods,Inventories,Octapharma Limited,000317-451,"25,200.00", 
NHS,Glos Hospitals NHS Foundation Trust,26/07/2022,Finished processed goods,Inventories,Bayer,000321-2,"45,622.80", 
NHS,Glos Hospitals NHS Foundation Trust,26/07/2022,Finished processed goods,Inventories,Aah Pharmaceuticals Limited,000321-31,"31,319.28", 
NHS,Glos Hospitals NHS Foundation Trust,26/07/2022,Finished processed goods,Inventories,CSL Behring UK Limited,000322-15,"46,771.20", 
NHS,Glos Hospitals NHS Foundation Trust,26/07/2022,Finished processed goods,Inventories,Novartis Pharmaceuticals UK Limited,000322-5,"48,081.60", 
NHS,Glos Hospitals NHS Foundation Trust,05/07/2022,Admin & Clerical - Agency,Clinical Coders,Hunter Healthcare Resourcing Limited,901736,"39,600.00", 
NHS,Glos Hospitals NHS Foundation Trust,12/07/2022,Contractual Clinical Services,Renal Dialysis,B Braun Avitum UK Limited,903553,"177,250.64", 
NHS,Glos Hospitals NHS Foundation Trust,26/07/2022,Laboratory Reagents,Microbiology - GRH,Chrystal Consulting Limited,909415,"45,882.47", 
NHS,Glos Hospitals NHS Foundation Trust,05/07/2022,Contractual Clinical Services,Renal Dialysis,B Braun Avitum UK Limited,909721,"131,265.00", 
NHS,Glos Hospitals NHS Foundation Trust,05/07/2022,Purchase Computers/Systems,Capital Project Control,Ascribe Ltd (Emis Health),909875,"25,320.00", 
NHS,Glos Hospitals NHS Foundation Trust,26/07/2022,Building - External Contracts,Capital Project Control,Camworth Limited,910892,"46,940.40", 
NHS,Glos Hospitals NHS Foundation Trust,12/07/2022,FM Computer Contracts,Anaesthetics - Admin,Rotamap  Limited,911088,"41,749.82", 
NHS,Glos Hospitals NHS Foundation Trust,05/07/2022,Computer Network Costs,Network Infrastructure,BT Global Services,911501,"39,274.52", 
NHS,Glos Hospitals NHS Foundation Trust,05/07/2022,Computer Maintenance,Computing - CGH HQ,Insight Direct (UK) Limited,911775,"114,000.00", 
NHS,Glos Hospitals NHS Foundation Trust,19/07/2022,Drugs - Passthrough Expenditure,Hereford Clinic Rental,HA95059 Wye Valley NHS Trust,912277,"416,068.00", 
NHS,Glos Hospitals NHS Foundation Trust,05/07/2022,Fresh Blood & Plasma Products,Blood Products,HA73961 NHS Blood & Transplant,912867,"45,402.19", 
NHS,Glos Hospitals NHS Foundation Trust,05/07/2022,Fresh Blood & Plasma Products,Blood Products,HA73961 NHS Blood & Transplant,912868,"99,429.08", 
NHS,Glos Hospitals NHS Foundation Trust,19/07/2022,Drugs - Passthrough Expenditure,Hereford Clinic Rental,HA95059 Wye Valley NHS Trust,912909,"477,874.43", 
NHS,Glos Hospitals NHS Foundation Trust,05/07/2022,Surgical Instruments : Disposable,Urology Specialty,BXTAccelyon Limited,912945,"36,054.00", 
NHS,Glos Hospitals NHS Foundation Trust,12/07/2022,Implant Procedures,Cardiology Laboratory,Biotronik UK Limited,913786,"26,160.00", 
NHS,Glos Hospitals NHS Foundation Trust,12/07/2022,Furniture & Fittings,Maternity Ward,Croyde Medical Limited,914249,"58,954.56", 
NHS,Glos Hospitals NHS Foundation Trust,05/07/2022,Rates,Rates - CGH,Cheltenham Borough Council,914573,"90,624.00", 
NHS,Glos Hospitals NHS Foundation Trust,05/07/2022,Rates,Rates - GRH,Gloucester City Council,914578,"209,920.00", 
NHS,Glos Hospitals NHS Foundation Trust,12/07/2022,Training Expenses,Overseas Recruitment,Oxford Brookes University,914615,"27,393.00", 
NHS,Glos Hospitals NHS Foundation Trust,05/07/2022,Prescribing Control,Payables - Manual,HA79125 NHSBSA,914793,"114,715.42", 
NHS,Glos Hospitals NHS Foundation Trust,05/07/2022,External Contracts : Other,Radiography,HA90825 Uni Hosp Bristol Weston Found Trust,914831,"39,167.32", 
NHS,Glos Hospitals NHS Foundation Trust,05/07/2022,External Contracts : Other,Radiography,HA90825 Uni Hosp Bristol Weston Found Trust,914832,"54,285.14", 
NHS,Glos Hospitals NHS Foundation Trust,05/07/2022,External Contracts : Other,Radiography,HA90825 Uni Hosp Bristol Weston Found Trust,914833,"72,116.39", 
NHS,Glos Hospitals NHS Foundation Trust,19/07/2022,Contractual Clinical Services,Renal Dialysis,B Braun Avitum UK Limited,914930,"128,835.00", 
NHS,Glos Hospitals NHS Foundation Trust,12/07/2022,Other Clinical Costs,Vascular Laboratory,Philips UK and Ireland,915068,"28,904.40", 
NHS,Glos Hospitals NHS Foundation Trust,12/07/2022,Implant Procedures,Cardiology Laboratory,Medtronic Limited,915100,"38,880.00", 
NHS,Glos Hospitals NHS Foundation Trust,12/07/2022,Medical & Surgical Equipment : Disposable,CAPD Renal,Baxter Healthcare Limited,915308,"39,529.96", 
NHS,Glos Hospitals NHS Foundation Trust,12/07/2022,External Consultancy Fees,Clinical Coders,Monmouth Partners Limited,915383,"27,900.00", 
NHS,Glos Hospitals NHS Foundation Trust,12/07/2022,External Consultancy Fees,Clinical Coders,Monmouth Partners Limited,915385,"27,900.00", 
NHS,Glos Hospitals NHS Foundation Trust,12/07/2022,External Consultancy Fees,Strategy & Transformation,exi Project Management South Limited,915514,"55,136.03", 
NHS,Glos Hospitals NHS Foundation Trust,05/07/2022,Computer Software / License  Fees,Radiography,Philips Electronics UK Limited,915518,"287,830.50", 
NHS,Glos Hospitals NHS Foundation Trust,05/07/2022,Commercial Sector,Main Theatre - Non Pay only,Genmed.me Limited,915573,"1,568,296.55", 
NHS,Glos Hospitals NHS Foundation Trust,12/07/2022,Contractual Clinical Services,Renal Dialysis,B Braun Avitum UK Limited,915607,"175,959.98", 
NHS,Glos Hospitals NHS Foundation Trust,12/07/2022,Commercial Sector,Main Theatre - Non Pay only,Genmed.me Limited,915737,"1,568,296.55", 
NHS,Glos Hospitals NHS Foundation Trust,12/07/2022,Rent,Car Parking Glos Hospitals,Saba Infra Gloucestershire Limited,915743,"83,045.76", 
NHS,Glos Hospitals NHS Foundation Trust,15/07/2022,Computer Maintenance,IT Contracts Shared Service,Stanley Security Solutions,915983,"-41,091.64", 
NHS,Glos Hospitals NHS Foundation Trust,15/07/2022,Computer Maintenance,IT Contracts Shared Service,Stanley Security Solutions,915984,"36,980.17", 
NHS,Glos Hospitals NHS Foundation Trust,08/07/2022,Computer Software / License  Fees,Clinical Academy - Undergraduate Management,Wolters Kluwer Health (Medical Research) Ltd,916084,"41,253.23", 
NHS,Glos Hospitals NHS Foundation Trust,12/07/2022,Contractual Clinical Services,Renal Dialysis,B Braun Avitum UK Limited,916125,"-177,250.64", 
NHS,Glos Hospitals NHS Foundation Trust,12/07/2022,Allocate,Payables - Manual,ID Medical Group Limited,916151,"37,107.00", 
NHS,Glos Hospitals NHS Foundation Trust,19/07/2022,External Contracts : Other,Radiography Consultants,Everlight Radiology,916161,"60,284.00", 
NHS,Glos Hospitals NHS Foundation Trust,12/07/2022,External Contracts : Other,Radiography Consultants,Everlight Radiology,916162,"75,960.25", 
NHS,Glos Hospitals NHS Foundation Trust,12/07/2022,External Contracts : Other,Radiography,Cobalt Health,916163,"56,050.00", 
NHS,Glos Hospitals NHS Foundation Trust,12/07/2022,Allocate,Payables - Manual,NC Healthcare Limited,916180,"29,629.22", 
NHS,Glos Hospitals NHS Foundation Trust,08/07/2022,Barclay Card,Payables - Manual,Barclaycard Commercial,916455,"104,291.92", 
NHS,Glos Hospitals NHS Foundation Trust,19/07/2022,Building - External Contracts,Capital Project Control,Kier Infrastructure & Overseas Limited,917055,"1,254,133.76", 
NHS,Glos Hospitals NHS Foundation Trust,19/07/2022,NHS Logistics control,Payables - Manual,Supply Chain Coordination Ltd - Consumables,917103,"80,622.01", 
NHS,Glos Hospitals NHS Foundation Trust,26/07/2022,Lease Rents,Shared Services-Admin,Regina Realty Limited,917459,"60,000.00", 
NHS,Glos Hospitals NHS Foundation Trust,19/07/2022,Finished processed goods,Inventories,Qualasept Ltd t/a Bath ASU,917496,"37,433.76", 
NHS,Glos Hospitals NHS Foundation Trust,19/07/2022,Lease Rents,Houses&Residences-CGH,Sovereign Housing Association Limited,917635,"28,464.11", 
NHS,Glos Hospitals NHS Foundation Trust,19/07/2022,Lease Rents,Houses&Residences-CGH,Sovereign Housing Association Limited,917662,"-28,464.11", 
NHS,Glos Hospitals NHS Foundation Trust,26/07/2022,Patients Appliances : Repairs,Patient Appliances,Opcare Limited,917680,"57,207.30", 
NHS,Glos Hospitals NHS Foundation Trust,19/07/2022,Lease Rents,Houses&Residences-CGH,Sovereign Housing Association Limited,917691,"37,162.03", 
NHS,Glos Hospitals NHS Foundation Trust,19/07/2022,Lease Rents,Houses&Residences-CGH,Sovereign Housing Association Limited,917692,"37,162.03", 
NHS,Glos Hospitals NHS Foundation Trust,26/07/2022,Contractual Clinical Services,Cardiology Laboratory,AGITO Medical A/S,917721,"29,190.00", 
NHS,Glos Hospitals NHS Foundation Trust,19/07/2022,Colour Connection,Payables - Manual,Colour Connection,917726,"34,974.79", 
NHS,Glos Hospitals NHS Foundation Trust,19/07/2022,NHS Logistics control,Payables - Manual,Supply Chain Coordination Ltd - Consumables,917739,"39,155.38", 
NHS,Glos Hospitals NHS Foundation Trust,26/07/2022,Other Transport Costs,Patient Transport Services GHX,E-Zec Medical Transport Services Ltd,917989,"30,663.94", 
NHS,Glos Hospitals NHS Foundation Trust,26/07/2022,Fresh Blood & Plasma Products,Blood Products,HA73961 NHS Blood & Transplant,918051,"99,429.08", 
NHS,Glos Hospitals NHS Foundation Trust,26/07/2022,NHS Logistics control,Payables - Manual,Supply Chain Coordination Ltd - Consumables,918095,"50,851.49", 
NHS,Glos Hospitals NHS Foundation Trust,22/07/2022,Clinical Negligence,Trustwide Finance,NHS Resolution,918235,"1,937,434.70", 
NHS,Glos Hospitals NHS Foundation Trust,26/07/2022,Medical & Surgical Equipment Maintenance Contracts,Radiography,Supply Chain Coordination Ltd - Maint. (201),918650,"71,767.75", 
NHS,Glos Hospitals NHS Foundation Trust,26/07/2022,Contractual Clinical Services,Renal Dialysis,B Braun Avitum UK Limited,919204,"130,590.00", 
NHS,Glos Hospitals NHS Foundation Trust,26/07/2022,External Contracts : Other,Radiography Consultants,Everlight Radiology,919205,"37,058.00", 
